Cogmind - Beta 14 @@@ ROGUE MODE // 2024.08.24 @ 21:56:26 Player: DZKane Result: Destroyed by Y-72 Warden with Quantum Rifle Performance ------------- Evolutions (8) 4000 Regions Visited (21) 4200 Robots Destroyed (376) 1880 Value Destroyed (15463) 15463 Prototype IDs (41) 820 Alien Tech Used (0) 0 Bonus (8739) 8739 TOTAL SCORE: 35102 Bonus ------- Triggered Max Security 1000 High Alert Combat Kills 3993 Follower Combat Kills 1078 Entered Garrisons 200 Used RIF Installer 1000 Network Hubs Disabled 200 Aligned with FarCom 300 Met Zhirov 300 Built Enhanced Grunts 300 A7 Reached Mainframe 300 Met R17 at Cetus 500 Friendly Fire -432 Cogmind --------- Core Integrity 0/1450 Matter 285/300 Energy 37/100 System Corruption 30% Temperature Cool (9) Movement Core (50) Location -2/Testing Parts ------- > --- POWER (2) -------- (None) > --- PROPULSION (6) --- Improved Q-thruster > --- UTILITY (11) ----- (None) > --- WEAPON (4) ------- (None) > --- INVENTORY (5) ---- Improved Shock Absorption System Advanced Recalibrator Phase Gun Peak State ------------ > --- POWER ------------ Reinforced Quantum Reactor Improved Quantum Reactor > --- PROPULSION ------- Armored Heavy Treads Centrium Heavy Treads Advanced Heavy Siege Treads > --- UTILITY ---------- Advanced Cooling System Huge Storage Unit Advanced Visual Processing Unit Advanced Targeting Computer Improved Weapon Cycler Advanced Phase Shifter Experimental Phase Shifter Centrium Medium Armor Plating Advanced Thermal Shield Advanced Shield Generator Experimental System Shield > --- WEAPON ----------- Enhanced Quantum Rifle Enhanced Quantum Rifle Advanced KE Penetrator Ionic Axe > --- INVENTORY -------- Light Quantum Reactor Light Quantum Reactor Heavy Siege Treads Centrium Wheel Advanced Cooling System Improved Matter Compressor Centrium Medium Armor Plating Centrium Medium Armor Plating Improved Shock Absorption System Advanced Hacking Suite High-powered Tractor Beam Advanced Recalibrator Phase Gun Phase Gun Phase Gun Phase Gun Phase Gun Phase Gun Advanced Variable Charge Gun Advanced Variable Charge Gun Railgun Railgun Heavy Shock Bomb Launcher Improved Plasma Cutter [Rating: 189] Favorites ----------- Power Cooled Ion Engine Engine Cooled Ion Engine Power Core Reinforced Fission Core Reactor Light Antimatter Reactor Propulsion Armored Treads Treads Armored Treads Wheel Armored Wheel Hover Unit Antigrav System Flight Unit Improved Q-thruster Utility Huge Storage Unit Device Advanced Cooling System Storage Huge Storage Unit Processor Advanced Targeting Computer Hackware Hacking Suite Protection Centrium Medium Armor Plating Weapon Heavy Assault Rifle Energy Gun Advanced Variable Charge Gun Energy Cannon Cooled Plasma Cannon Ballistic Gun Heavy Assault Rifle Launcher Proton Missile Launcher Special Weapon Plasma Cutter Slashing Weapon Ionic Axe Special Melee Weapon Datajack Build | -11 -10 -9 -9 -9 -8 -8 -8 -8 -7 -7 -7 -7 -5 -5 -5 -5 -5 -4 -3 -2 -2 ------- Run | Yrd Mat Mat Min Exi Min Mat Gar Mat Fac Sto Rec Scr Fac Ext Cet Arc Hub Fac Res Res Tes Slots Evolved 16 | . . 2 . . . 2 . . 2 . . . 4 . . . . 2 2 2 . Power 1 | . . . . . . . . . . . . . 1 . . . . . . . . Propulsion 4 | . . . . . . 1 . . 1 . . . 2 . . . . . . . . Utility 9 | . . . . . . 1 . . 1 . . . 1 . . . . 2 2 2 . Weapon 2 | . . 2 . . . . . . . . . . . . . . . . . . . Parts Attached 341 | 6 11 23 1 2 5 16 13 23 12 10 7 . 35 55 16 . 4 22 2 61 17 Power 36 | 1 2 3 . 1 . . . 2 1 1 2 . 4 4 2 . 1 3 . 8 1 Engine 16 | 1 2 3 . 1 . . . 1 . 1 2 . 3 1 . . . 1 . . . Core 4 | . . . . . . . . 1 1 . . . 1 1 . . . . . . . Reactor 16 | . . . . . . . . . . . . . . 2 2 . 1 2 . 8 1 Propulsion 76 | 2 4 4 1 1 1 6 1 7 1 . 2 . 11 16 4 . . 8 . 4 3 Treads 38 | . 2 1 . . . 4 1 5 1 . 1 . 8 4 2 . . 3 . 4 2 Leg . | . . . . . . . . . . . . . . . . . . . . . . Wheel 34 | 2 2 3 1 1 1 2 . 2 . . . . 2 11 2 . . 5 . . . Hover 3 | . . . . . . . . . . . 1 . 1 1 . . . . . . . Flight 1 | . . . . . . . . . . . . . . . . . . . . . 1 Utility 104 | 1 3 1 . . . 2 . 2 9 3 3 . 8 16 3 . 3 9 2 35 4 Device 58 | . 1 . . . . 1 . . 2 . 2 . 4 9 1 . 2 5 2 26 3 Storage 7 | 1 1 . . . . . . 1 . 1 . . . 1 . . . . . 2 . Processor 7 | . 1 1 . . . 1 . . 3 . . . . . . . . 1 . . . Hackware 10 | . . . . . . . . 1 2 1 1 . . . . . 1 . . 4 . Protection 22 | . . . . . . . . . 2 1 . . 4 6 2 . . 3 . 3 1 Artifact . | . . . . . . . . . . . . . . . . . . . . . . Weapon 125 | 2 2 15 . . 4 8 12 12 1 6 . . 12 19 7 . . 2 . 14 9 Energy Gun 27 | . . . . . . . . . . . . . 3 10 2 . . 2 . 6 4 Energy Cannon 3 | . . . . . . . . . . 1 . . . 2 . . . . . . . Ballistic Gun 76 | 2 2 15 . . 4 8 9 12 1 3 . . 6 3 4 . . . . 4 3 Ballistic Cannon . | . . . . . . . . . . . . . . . . . . . . . . Launcher 8 | . . . . . . . . . . . . . 3 3 . . . . . . 2 Special Weapon 5 | . . . . . . . 3 . . . . . . . 1 . . . . 1 . Impact Weapon . | . . . . . . . . . . . . . . . . . . . . . . Slashing Weapon 5 | . . . . . . . . . . 1 . . . 1 . . . . . 3 . Piercing Weapon . | . . . . . . . . . . . . . . . . . . . . . . Special Melee Weapon 1 | . . . . . . . . . . 1 . . . . . . . . . . . Unidentified Prototypes 15 | . 1 1 . . . . . 1 . 1 1 . . 1 4 . . . . 4 1 Corrupted Parts 11 | . . . . . . . . . . . . . . 4 6 . 1 . . . . System Corruption 48 | . . . . . . . . . . . . . . 12 26 . 10 . . . . Parts Lost 72 | . 2 4 1 . . 8 . 1 1 7 . . 12 14 2 . . 1 . 1 18 Power 4 | . . . . . . . . 1 . . . . 1 1 . . . . . . 1 Propulsion 23 | . 1 . 1 . . 2 . . . . . . 5 7 1 . . 1 . . 5 Utility 14 | . . . . . . . . . 1 3 . . . 2 1 . . . . . 7 Weapon 31 | . 1 4 . . . 6 . . . 4 . . 6 4 . . . . . 1 5 Highest Loss Streak 14 | . 1 1 1 . . 7 . 1 1 7 . . 5 14 2 . . 1 . 1 14 To Critical Strikes 2 | . . . . . . 1 . . . . . . . . 1 . . . . . . Average Slot Usage (%) 95 | . 98 99 99 58 99 99 100 99 99 99 100 100 95 97 94 94 94 89 85 85 73 Engine 5 | . 14 11 11 11 11 9 9 7 5 1 7 7 9 1 . . . . . . . Core 1 | . . . . . . . . 2 1 5 . . . 5 5 5 5 . . . . Reactor 2 | . . . . . . . . . . . . . . 3 5 5 5 9 9 7 6 Treads 17 | . 10 . . . . 9 27 25 30 30 29 30 30 13 5 5 5 7 14 13 11 Wheel 8 | . 17 21 21 22 22 17 . 1 . . . . . 18 22 23 23 13 . . . Device 7 | . 3 . . . . 3 9 1 1 . 4 7 5 6 5 11 11 13 23 22 21 Storage 7 | . 14 11 11 11 11 9 9 9 7 6 7 7 5 5 5 5 5 5 4 4 3 Processor 10 | . 10 11 11 11 11 14 9 9 9 15 15 15 11 11 5 5 5 8 9 8 6 Hackware 2 | . . . . . . . . 7 7 1 2 . . . . . . 1 . 7 2 Protection 2 | . . . . . . . . . 1 5 . . 4 4 10 5 5 5 4 4 3 Energy Gun 4 | . . . . . . . . . . . . . 2 16 13 5 5 7 9 10 7 Ballistic Gun 22 | . 26 43 44 3 43 35 34 36 30 26 30 30 19 1 7 17 17 12 9 5 6 Peak Build Rating 189 | 6 13 21 21 21 21 28 33 41 49 51 54 53 66 80 112 112 112 144 156 189 187 Average Rating 65 | 5 11 18 20 13 20 26 29 37 45 46 51 52 60 71 101 112 111 127 155 179 154 On Entrance 61 | . 6 12 21 21 14 21 27 33 40 48 51 52 53 61 79 112 112 109 144 156 187 Naked Turns 8 | . . . . . . . . . . . . . . . . . . . . . 8 Heaviest Build 173 | 11 92 100 100 100 100 101 102 102 112 112 116 115 133 156 160 158 159 164 153 173 170 Greatest Support 230 | 26 26 20 20 26 26 65 65 65 80 80 80 80 126 80 80 80 48 220 220 230 215 Greatest Overweight (x) 13 | . 9 4 9 4 3 3 1 10 1 1 1 1 5 13 4 3 3 6 . . . Average Overweight (x) 2 | . 6 4 4 3 3 2 1 1 1 1 1 1 1 2 2 2 3 1 . . . Largest Inventory Capacity 25 | 8 25 25 25 25 25 25 25 25 25 25 25 25 25 25 25 25 25 25 25 25 25 Average Capacity 24 | 7 24 25 25 25 25 25 25 25 25 24 25 25 25 25 25 25 25 25 25 25 22 Most Carried 25 | 8 25 25 25 25 25 25 25 25 25 25 25 25 25 25 25 25 25 25 24 25 25 Average Carried 23 | 3 18 24 24 24 21 23 24 24 23 19 23 24 23 24 24 25 24 24 23 24 19 Final Capacity 25 | 8 25 25 25 25 25 25 25 25 25 25 25 25 25 25 25 25 25 25 25 25 5 Final Carried 25 | 8 25 25 25 25 22 19 25 25 25 24 24 25 25 25 25 25 25 25 23 25 3 Class Distribution -------------------- 21% | Skirmisher 16% | Scavenger-Tank 16% | Scavenger-Skirmisher 16% | Gunner 9% | Mutant 5% | Scavenger-Gunner 4% | Commander-Gunner 3% | Hacker-Tank 3% | Hacker-Skirmisher Dominant Class ---------------- Mutant | -10/Materials Scavenger-Gunner | -9/Materials Gunner | -9/Mines Mutant | -9/Exiles Skirmisher | -8/Mines Scavenger-Skirmisher | -8/Materials Gunner | -8/Garrison Skirmisher | -8/Materials Skirmisher | -7/Factory Skirmisher | -7/Storage Skirmisher | -7/Recycling Gunner | -7/Scraptown Scavenger-Skirmisher | -5/Factory Scavenger-Skirmisher | -5/Extension Scavenger-Tank | -5/Cetus Scavenger-Tank | -5/Archives Scavenger-Tank | -5/Hub_04(d) Scavenger-Tank | -4/Factory Scavenger-Tank | -3/Research Scavenger-Tank | -2/Research Scavenger-Tank | -2/Testing Resources | -11 -10 -9 -9 -9 -8 -8 -8 -8 -7 -7 -7 -7 -5 -5 -5 -5 -5 -4 -3 -2 -2 ----------- Run | Yrd Mat Mat Min Exi Min Mat Gar Mat Fac Sto Rec Scr Fac Ext Cet Arc Hub Fac Res Res Tes Matter Collected 10509 | 280 690 1224 168 27 113 478 163 1073 296 406 232 . 774 995 225 . 266 639 . 1635 825 Remotely 1815 | . . . . . . . . . . . . . 450 . . . . 407 . 268 690 Salvage Created 20387 | 84 866 1746 277 . 143 655 176 1177 441 526 531 . 1543 3551 116 . 930 1279 . 3762 2584 Parts 885 | 7 73 110 22 . 3 37 6 60 16 31 13 . 90 101 5 . 35 56 . 157 63 Haulers Intercepted 19 | . 2 5 . . . . . 2 . 2 . . . 6 . . 2 . . . . Recyclers Shooed 18 | . 2 . . . . . . 1 . 4 2 . . 5 . . . . . 4 . Parts Field Recycled 78 | . . . . . . . . . 24 . 30 13 5 6 . . . . . . . Retrieved Matter 490 | . . . . . . . . . 250 . 79 61 80 20 . . . . . . . Parts Self-Destructed . | . . . . . . . . . . . . . . . . . . . . . . Prevented . | . . . . . . . . . . . . . . . . . . . . . . Kills | -11 -10 -9 -9 -9 -8 -8 -8 -8 -7 -7 -7 -7 -5 -5 -5 -5 -5 -4 -3 -2 -2 ------- Run | Yrd Mat Mat Min Exi Min Mat Gar Mat Fac Sto Rec Scr Fac Ext Cet Arc Hub Fac Res Res Tes Combat Hostiles Destroyed 246 | . 17 29 8 . . 14 . 18 6 4 3 . 31 19 2 2 3 18 . 38 34 Guns 217 | . 17 29 8 . . 14 . 18 6 4 3 . 20 10 2 2 3 17 . 38 26 Cannons 5 | . . . . . . . . . . . . . . 5 . . . . . . . AOE 20 | . . . . . . . . . . . . . 10 2 . . . . . . 8 Classes Destroyed 22 | 2 8 1 . . . . . 2 1 1 . . 1 1 . . . 1 . 2 2 Worker 29 | . 3 4 . . 2 1 . 2 . 1 . . 4 1 . . 8 . . 3 . Builder 10 | . 1 . . . . . . . . . . . 2 1 . . 2 2 . 2 . Tunneler 8 | 1 . . . . . . . . . . . . 3 2 . . . 1 . 1 . Hauler 19 | . 2 5 . . . . . 2 . 2 . . . 6 . . 2 . . . . Recycler 38 | 1 2 3 1 . 1 . . 2 1 3 5 . 1 11 . . 2 1 . 4 . Mechanic 1 | . 1 . . . . . . . . . . . . . . . . . . . . Operator 4 | . 2 1 . . . . . . . . . . 1 . . . . . . . . Watcher 19 | . 2 4 . . . . . 2 1 1 . . . 3 . . . 1 . 5 . Swarmer 46 | . 9 8 5 . . 3 . 2 . . . . 15 . . . . 4 . . . Saboteur 5 | . . . . . . . . . . . . . 1 . . . . 1 . . 3 Grunt 87 | . 8 12 3 . . 6 . 9 3 1 . . 2 12 . . . 7 . 7 17 Brawler 10 | . . . . . . . . 2 . . . . 1 . . . . . . . 7 Duelist 4 | . . . . . . . . . . . . . . . . . . 1 . 1 2 Protector 2 | . . . . . . . . 2 . . . . . . . . . . . . . Sentry 39 | . . 9 . . . 5 . 3 1 1 3 . 2 5 . 2 3 3 . 2 . Specialist 2 | . . . . . . . . . . . . . . . . . . . . 2 . Hunter 11 | . . . . . . . . . . 1 . . 2 . . . . . . 8 . Programmer 32 | . . . . . . . . . 2 1 . . 8 . . . . 2 . 16 3 Heavy 2 | . . . . . . . . . . . . . . . . . . . . 2 . Behemoth 2 | . . . . . . . . . . . . . . 2 . . . . . . . Cetus Guard 2 | . . . . . . . . . . . . . . . 2 . . . . . . Investigator 1 | . . . . . . . . . . . . . . . . . . . . . 1 Executioner 2 | . . . . . . . . . . . . . . . . . . . . . 2 Savage 1 | . . . . . . . . . . . . . . 1 . . . . . . . Best Kill Streak 29 | 2 5 5 3 . 2 5 . 9 3 4 3 . 13 12 1 2 16 8 . 6 29 Combat Bots Only 28 | . 5 4 3 . . 5 . 9 3 1 1 . 11 3 1 2 3 6 . 5 28 Max Kills in Single Turn 10 | 1 1 2 2 . 1 2 . 2 1 2 1 . 5 2 1 1 10 2 . 3 7 Gunslinging 1 | . . 1 1 . . 1 . 1 . . . . 1 . . . . 1 . 1 . Exploded 6 | . . . . . . . . . . . . . 4 1 . . . . . . 6 Melee . | . . . . . . . . . . . . . . . . . . . . . . Uniques/NPCs Destroyed . | . . . . . . . . . . . . . . . . . . . . . . Combat | -11 -10 -9 -9 -9 -8 -8 -8 -8 -7 -7 -7 -7 -5 -5 -5 -5 -5 -4 -3 -2 -2 -------- Run | Yrd Mat Mat Min Exi Min Mat Gar Mat Fac Sto Rec Scr Fac Ext Cet Arc Hub Fac Res Res Tes Hostile Shots Fired 1708 | . 110 80 20 . . 111 . 89 47 9 27 . 174 172 13 . 31 99 . 361 365 Missed 457 | . 25 20 8 . . 20 . 18 14 2 9 . 66 49 8 . 11 26 . 123 58 Damage Taken 22740 | . 878 862 172 . . 1340 . 1245 347 101 138 . 2098 2831 164 460 395 1120 . 4180 6409 Core 2557 | . 189 106 28 . . 129 . 127 33 . . . 92 253 27 37 21 62 . 224 1229 Absorbed by Shields 2236 | . . . . . . . . . . . . . . 215 24 142 140 410 . 648 657 Reduced by Siege Mode 1850 | . . . . . . . . . . . . . . . . 8 . . . 809 1033 Ignored by Resistances 1439 | . . . . . . . . . . . . . . . . . . . . 205 1234 Regen/Repaired (Parts) 1345 | . . . . . . . . . . 408 . . . . . . . 747 . 190 . Core Remaining (%) 73 | 100 24 . . . 66 . . 53 . . . 95 . . . . 57 94 100 . . Volleys Fired 752 | 5 111 75 12 . 3 34 20 48 20 23 13 . 53 97 8 2 12 41 . 111 64 Largest 4 | 2 2 4 4 . 4 4 4 4 4 4 4 . 4 4 4 4 4 4 . 4 4 Hottest 306 | 40 40 92 92 . 92 92 94 98 101 106 106 . 149 306 306 185 185 230 . 283 230 Shots Fired 2552 | 10 222 294 49 . 12 130 74 192 80 77 52 . 171 304 19 8 43 163 . 412 240 Gun 2450 | 10 222 294 49 . 12 130 72 192 80 76 52 . 161 218 19 8 43 163 . 412 237 Cannon 72 | . . . . . . . . . . 1 . . . 71 . . . . . . . Launcher 28 | . . . . . . . . . . . . . 10 15 . . . . . . 3 Special 2 | . . . . . . . 2 . . . . . . . . . . . . . . Kinetic 1819 | 10 222 294 49 . 12 130 72 192 80 76 52 . 154 30 4 7 35 106 . 147 147 Thermal 678 | . . . . . . . 2 . . 1 . . 7 232 15 1 8 57 . 265 90 Explosive . | . . . . . . . . . . . . . . . . . . . . . . Electromagnetic 55 | . . . . . . . . . . . . . 10 42 . . . . . . 3 Robot Hit Streak 39 | 6 11 14 3 . 6 18 17 20 9 17 22 . 10 22 8 3 10 11 . 36 39 Robot Miss Streak 6 | 2 6 6 4 . . 2 1 3 4 5 2 . 5 4 1 1 3 2 . 4 4 Penetration Max 2 | . . . . . . . . 1 . . . . . . . . . 1 . 1 2 Secondary Targets 42 | . . 4 2 . . 4 . 6 . . . . 4 . . . 2 3 . 10 7 Max Gunslinging Chain 2 | . . 1 1 . . 1 . 1 . . . . 1 . . . 1 2 . 1 1 Shots Hit Robots 1736 | 6 133 168 18 . 5 99 26 130 47 61 32 . 109 218 15 4 27 101 . 327 210 Core Hits 873 | 3 50 67 10 . 3 32 13 53 22 35 33 . 124 108 10 2 29 41 . 117 121 Critical Kills 25 | 1 1 . . . . . 1 1 . . . . 1 1 1 . 1 4 . 8 5 Critical Parts Destroyed 39 | . . . . . . . . 2 . . . . . . 1 . 4 7 . 15 10 Critical Strikes 75 | 1 1 1 . . . . 1 3 . . . . 1 10 2 . 5 11 . 24 15 Burn 8 | . . . . . . . . . . . . . . 8 . . . . . . . Meltdown 1 | . . . . . . . . . . . . . . 1 . . . . . . . Destroy 65 | 1 1 1 . . . . 1 3 . . . . 1 . 2 . 5 11 . 24 15 Corrupt 1 | . . . . . . . . . . . . . . 1 . . . . . . . Melee Attacks 5 | . . . . . . . . . . 1 . . . . . . . . . 4 . Impact . | . . . . . . . . . . . . . . . . . . . . . . Slashing 4 | . . . . . . . . . . . . . . . . . . . . 4 . Piercing . | . . . . . . . . . . . . . . . . . . . . . . Sneak Attacks . | . . . . . . . . . . . . . . . . . . . . . . Combat Hostiles . | . . . . . . . . . . . . . . . . . . . . . . Follow-up Attacks . | . . . . . . . . . . . . . . . . . . . . . . Damage Inflicted 46483 | 63 1462 2565 471 . 81 1446 297 2200 801 1118 744 . 3304 6298 379 102 1892 2977 . 10181 10102 Guns 38377 | 63 1462 2437 309 . 81 1446 276 2192 801 1118 744 . 1988 3726 379 102 680 2977 . 10061 7535 Cannons 1663 | . . . . . . . . . . . . . . 1663 . . . . . . . Explosions 6290 | . . 128 162 . . . . . . . . . 1316 909 . . 1212 . . . 2563 Melee . | . . . . . . . . . . . . . . . . . . . . . . Ramming 132 | . . . . . . . . 8 . . . . . . . . . . . 120 4 Kinetic 23886 | 63 1462 2437 309 . 81 1446 276 2192 801 1118 744 . 1885 406 79 102 523 1709 . 3205 5048 Thermal 18553 | . . 128 162 . . . 21 . . . . . 572 4770 300 . 157 1268 . 6856 4319 Explosive . | . . . . . . . . . . . . . . . . . . . . . . Electromagnetic 3912 | . . . . . . . . . . . . . 847 1122 . . 1212 . . . 731 Impact . | . . . . . . . . . . . . . . . . . . . . . . Slashing . | . . . . . . . . . . . . . . . . . . . . . . Piercing . | . . . . . . . . . . . . . . . . . . . . . . Highest Corruption 50 | . . 4 4 4 4 . . . 1 . . . 6 13 39 39 50 2 . 17 30 Average Corruption 11 | . . 3 4 4 4 . . . 1 . . . 4 8 33 39 39 2 . 10 20 Corruption Purged 6 | . . . . . . . . . 1 . . . 3 2 . . . . . . . Corruption Blocked . | . . . . . . . . . . . . . . . . . . . . . . Effects 326 | . . 24 9 10 7 . . . 2 . . . 16 73 42 14 20 . . 72 37 Message Errors 75 | . . 4 2 5 1 . . . 2 . . . 1 23 14 2 2 . . 16 3 Matter Fused 65 | . . 5 2 3 2 . . . . . . . 3 16 8 5 1 . . 15 5 Heat Flow Errors 41 | . . 5 1 . . . . . . . . . 2 8 5 2 4 . . 8 6 Energy Discharges 32 | . . 2 1 1 3 . . . . . . . 3 9 1 1 2 . . 8 1 Parts Rejected 3 | . . . . . . . . . . . . . 1 . . . . . . 2 . Parts Fused 2 | . . . 1 . . . . . . . . . . . . . . . . . 1 Data Loss (minor) 32 | . . 2 1 1 1 . . . . . . . . 7 7 2 3 . . 6 2 Data Loss (major) 17 | . . 1 . . . . . . . . . . 2 3 2 1 2 . . 5 1 Misfires 15 | . . 1 1 . . . . . . . . . 2 3 2 1 1 . . 2 2 Alerts 10 | . . 2 . . . . . . . . . . . 1 2 . 1 . . 3 1 Misdirections 2 | . . . . . . . . . . . . . . . . . 1 . . 1 . Weapon Failures 32 | . . 2 . . . . . . . . . . 2 3 1 . 3 . . 6 15 Overload Shots 1 | . . . . . . . . . . 1 . . . . . . . . . . . Overflow Damage 306 | . . 20 23 . . . . . . . . . 136 42 . . 62 . . 4 19 Projectiles 8 | . . . . . . . . . . . . . . 8 . . . . . . . Explosions 294 | . . 20 23 . . . . . . . . . 136 34 . . 62 . . . 19 Melee 4 | . . . . . . . . . . . . . . . . . . . . 4 . Knockbacks 1 | . . . . . . . . . . . . . . . . . . . . 1 . Impact 1 | . . . . . . . . . . . . . . . . . . . . 1 . Kinetic . | . . . . . . . . . . . . . . . . . . . . . . Secondary . | . . . . . . . . . . . . . . . . . . . . . . Self-Inflicted Damage 587 | . . 145 33 . . . . . . . . . . 46 . . 90 . . . 273 Shots 13 | . . 2 1 . . . . . . . . . . 2 . . 1 . . . 7 Rammed 7 | . . . . . . . . 1 . . . . . . . . . . . 5 1 Targets Rammed 7 | . . . . . . . . 1 . . . . . . . . . . . 5 1 Kicked . | . . . . . . . . . . . . . . . . . . . . . . Crushed . | . . . . . . . . . . . . . . . . . . . . . . Highest Temperature 713 | . 22 288 200 . 15 226 9 713 221 112 422 . 246 680 466 71 244 402 . 366 380 Average Temperature 93 | . 3 48 44 . 10 77 6 154 73 40 87 . 63 135 130 36 100 133 . 110 86 Received Heat Transfer 4290 | . 321 234 51 . . 693 . 549 99 27 42 . 144 661 . . 54 274 . 234 907 Effects 47 | . . 1 . . . 2 . 13 . . 1 . . 18 . . 2 4 . 5 1 Shutdowns 8 | . . . . . . . . 2 . . . . . 3 . . . 2 . . 1 Energy Bleed 10 | . . . . . . 2 . 1 . . . . . 5 . . . 2 . . . Interference 14 | . . 1 . . . . . . . . . . . 7 . . 2 . . 4 . Matter Decay 3 | . . . . . . . . 2 . . . . . . . . . . . 1 . Short Circuit 4 | . . . . . . . . 2 . . . . . 2 . . . . . . . Damage (minor) 3 | . . . . . . . . 1 . . 1 . . 1 . . . . . . . Damage (major) 4 | . . . . . . . . 4 . . . . . . . . . . . . . Damage (core) 1 | . . . . . . . . 1 . . . . . . . . . . . . . Siege Activations 18 | . . . . . . . . . . . . . . . 2 2 . . . 13 1 Total Turns 770 | . . . . . . . . . . . . . . . 126 76 . . . 323 245 Longest Duration 245 | . . . . . . . . . . . . . . . 120 61 . . . 65 245 Robots Corrupted 4 | . . . . . . . . . . . . . 1 1 . . 1 . . 1 . Combat Hostiles 2 | . . . . . . . . . . . . . 1 1 . . . . . . . Parts Fried 19 | . . . . . . . . . . . . . 4 7 . . 7 . . . 1 Impact Corruptions 1 | . . . . . . . . . . . . . . . . . . . . 1 . Robots Melted 5 | . . . . . . . . . . . . . . 4 . . . 1 . . . Combat Hostiles 2 | . . . . . . . . . . . . . . 1 . . . 1 . . . Parts Melted 59 | . . . 1 . . . . . . . . . . 24 . . . . . 32 2 Heat Transferred 24090 | . . 100 200 . . . 74 . . . . . 675 9063 471 . 185 1591 . 7881 3850 Parts Sabotaged 4 | . . . . . . . . . . . . . . . . . . . . . 4 Parts Stolen . | . . . . . . . . . . . . . . . . . . . . . . Parts Stripped . | . . . . . . . . . . . . . . . . . . . . . . Power Chain Reactions 16 | . . . . . . . . . . . . . 3 5 . . 1 . . . 7 Alert | -11 -10 -9 -9 -9 -8 -8 -8 -8 -7 -7 -7 -7 -5 -5 -5 -5 -5 -4 -3 -2 -2 ------- Run | Yrd Mat Mat Min Exi Min Mat Gar Mat Fac Sto Rec Scr Fac Ext Cet Arc Hub Fac Res Res Tes Peak Influence 2640 | 10 251 417 502 . 15 234 1504 937 471 163 140 . 775 371 246 203 1050 776 390 988 2640 Initial 733 | . 6 47 156 . . . 105 733 426 83 37 . . 308 140 73 70 521 390 219 555 Average 381 | 2 77 226 343 . 10 114 727 782 317 65 54 . 325 262 161 150 296 616 390 432 1958 Maximum Alert Level 5 | . 1 2 2 . . 1 4 3 2 . . . 3 1 1 1 3 3 1 3 5 Low Security (%) 35 | 100 97 39 . . 100 96 1 . 18 100 100 . 49 13 52 61 75 . . 4 . Level 1 32 | . 2 47 61 . . 3 35 . 53 . . . 9 86 47 38 . . 100 60 . Level 2 15 | . . 12 37 . . . 14 29 27 . . . 28 . . . . 81 . 16 . Level 3 11 | . . . . . . . 22 70 . . . . 12 . . . 24 18 . 17 . Level 4 2 | . . . . . . . 25 . . . . . . . . . . . . . . Level 5 . | . . . . . . . . . . . . . . . . . . . . . . High Security . | . . . . . . . . . . . . . . . . . . . . . . Max Security 2 | . . . . . . . . . . . . . . . . . . . . . 99 Squads Dispatched 63 | . 3 4 . . . 5 . 4 1 2 . . 6 2 . . 4 2 . 10 20 Investigation 5 | . 1 2 . . . 2 . . . . . . . . . . . . . . . Extermination 12 | . . . . . . . . . 1 1 . . 3 . . . . 1 . 6 . Reinforcement 17 | . 2 2 . . . 1 . 2 . 1 . . 2 2 . . 1 . . 4 . Assault 24 | . . . . . . . . 2 . . . . 1 . . . . 1 . . 20 Garrison 5 | . . . . . . 2 . . . . . . . . . . 3 . . . . Intercept . | . . . . . . . . . . . . . . . . . . . . . . Searches Triggered . | . . . . . . . . . . . . . . . . . . . . . . Construction Impeded 4 | . . . . . . . . 1 . . . . 1 1 . . . . . 1 . Haulers Reinforced 2 | . . . . . . . . . . 1 . . . . . . . . . 1 . Active Scanning Responses . | . . . . . . . . . . . . . . . . . . . . . . Cargo Convoy Interrupts 1 | . . . . . . . . . . . . . . . . . . . . 1 . Stealth | -11 -10 -9 -9 -9 -8 -8 -8 -8 -7 -7 -7 -7 -5 -5 -5 -5 -5 -4 -3 -2 -2 --------- Run | Yrd Mat Mat Min Exi Min Mat Gar Mat Fac Sto Rec Scr Fac Ext Cet Arc Hub Fac Res Res Tes Distress Signals 19 | . 4 2 . . . . . 3 . 1 . . 1 1 2 . 2 . . 2 1 Communications Jammed 83 | . . . . . . . . . . . . . . . . . . . . 20 63 Distress Signals 80 | . . . . . . . . . . . . . . . . . . . . 17 63 Times Spotted 436 | . 33 43 8 . . 20 . 39 10 9 2 . 35 31 9 . 11 19 . 50 117 Peak Tracking Total 35 | . 6 5 3 . . 5 . 7 3 2 1 . 9 5 5 . 7 5 . 6 35 Tactical Retreats 24 | . 1 2 1 . . . . 4 . . . . 1 . . . 4 . . 3 8 Traps | -11 -10 -9 -9 -9 -8 -8 -8 -8 -7 -7 -7 -7 -5 -5 -5 -5 -5 -4 -3 -2 -2 ------- Run | Yrd Mat Mat Min Exi Min Mat Gar Mat Fac Sto Rec Scr Fac Ext Cet Arc Hub Fac Res Res Tes Traps Triggered 15 | . 2 4 . . . 1 2 . . . . . . 1 . . 2 1 . 2 . Indirectly 2 | . . . . . . . . . . . . . . . . . 2 . . . . Trap Hack Attempts . | . . . . . . . . . . . . . . . . . . . . . . Triggered . | . . . . . . . . . . . . . . . . . . . . . . Disarmed 6 | . . 6 . . . . . . . . . . . . . . . . . . . Reprogrammed . | . . . . . . . . . . . . . . . . . . . . . . Reused . | . . . . . . . . . . . . . . . . . . . . . . Traps Extracted . | . . . . . . . . . . . . . . . . . . . . . . Installed . | . . . . . . . . . . . . . . . . . . . . . . Triggered 3 | . . . . . . . . . . . . . . . . . 1 . . 2 . Machines | -11 -10 -9 -9 -9 -8 -8 -8 -8 -7 -7 -7 -7 -5 -5 -5 -5 -5 -4 -3 -2 -2 ---------- Run | Yrd Mat Mat Min Exi Min Mat Gar Mat Fac Sto Rec Scr Fac Ext Cet Arc Hub Fac Res Res Tes Machines Disabled 53 | . . 3 6 . . . 5 3 . 1 . . 5 3 1 . 21 2 . 3 . Max in Single Turn 19 | . . 2 6 . . . 1 . . 1 . . 4 2 1 . 19 1 . 1 . Garrison Access 2 | . . . . . . . . . . . . . 1 . . . . 1 . . . Garrison Relay 3 | . . . . . . . 3 . . . . . . . . . . . . . . Phase Generator 1 | . . . . . . . 1 . . . . . . . . . . . . . . Network Hub 1 | . . . . . . . . . . . . . . . . . 1 . . . . Energy Cycler 2 | . . . . . . . . . . . . . . 2 . . . . . . . Machines Repaired . | . . . . . . . . . . . . . . . . . . . . . . Machines Dismantled 4 | . . . . . . . 2 . . . . . . . 1 . . . . 1 . Machines Sabotaged . | . . . . . . . . . . . . . . . . . . . . . . Overloaded Fab Kills . | . . . . . . . . . . . . . . . . . . . . . . Hacking | -11 -10 -9 -9 -9 -8 -8 -8 -8 -7 -7 -7 -7 -5 -5 -5 -5 -5 -4 -3 -2 -2 --------- Run | Yrd Mat Mat Min Exi Min Mat Gar Mat Fac Sto Rec Scr Fac Ext Cet Arc Hub Fac Res Res Tes Machines Accessed 65 | . 5 10 . 1 . 4 4 7 2 5 11 . 1 7 1 . . 2 . 5 . Terminals 41 | . 3 7 . . . 2 4 6 1 3 5 . 1 6 1 . . . . 2 . Fabricators 1 | . . . . . . . . . . . . . . . . . . . . 1 . Repair Stations 4 | . . . . . . . . . . 2 . . . . . . . 1 . 1 . Recycling Units 10 | . 2 1 . . . . . . . . 6 . . 1 . . . . . . . Scanalyzers 6 | . . 2 . . . 1 . 1 1 . . . . . . . . . . 1 . Garrison Access 2 | . . . . . . 1 . . . . . . . . . . . 1 . . . Total Hacks 176 | . 23 32 . 1 . 6 6 19 7 13 19 . 3 13 2 . . 10 . 22 . Successful 81 | . 8 15 . 1 . 3 1 10 5 6 7 . 1 7 1 . . 9 . 7 . Failed 94 | . 14 17 . . . 3 5 9 2 7 12 . 2 6 1 . . 1 . 15 . Catastrophic 20 | . 1 4 . . . 1 1 1 . 1 2 . 1 2 . . . . . 6 . Database Lockouts 1 | . 1 . . . . . . . . . . . . . . . . . . . . Manual 67 | . 22 7 . 1 . 1 . 9 . 5 9 . 3 4 1 . . . . 5 . Terminals 114 | . 18 21 . . . 3 6 17 3 8 12 . 3 11 2 . . . . 10 . Fabricators 1 | . . . . . . . . . . . . . . . . . . . . 1 . Repair Stations 23 | . . . . . . . . . . 5 . . . . . . . 9 . 9 . Recycling Units 16 | . 5 2 . . . . . . . . 7 . . 2 . . . . . . . Scanalyzers 19 | . . 9 . . . 2 . 2 4 . . . . . . . . . . 2 . Garrison Access 2 | . . . . . . 1 . . . . . . . . . . . 1 . . . Terminal Hacks 29 | . 7 4 . 1 . . 1 5 1 1 1 . . 5 1 . . . . 2 . Record 4 | . . . . . . . . . . . . . . 1 1 . . . . 2 . Robot Analysis 7 | . 6 1 . . . . . . . . . . . . . . . . . . . Prototype ID Bank 1 | . . . . . . . . . . . 1 . . . . . . . . . . Open Door 3 | . . . . . . . . . . 1 . . . 2 . . . . . . . Level Access Points 1 | . . . . . . . . 1 . . . . . . . . . . . . . Branch Access Points 2 | . . . . . . . . 1 1 . . . . . . . . . . . . Garrison Index 1 | . . . . . . . . 1 . . . . . . . . . . . . . Unreport Threat 5 | . 1 2 . . . . . 2 . . . . . . . . . . . . . Locate Traps 1 | . . . . . . . . . . . . . . 1 . . . . . . . Disarm Traps 1 | . . 1 . . . . . . . . . . . . . . . . . . . Recall Reinforcements 1 | . . . . . . . . . . . . . . 1 . . . . . . . Patrol Navigation 1 | . . . . . . . 1 . . . . . . . . . . . . . . Derelict Proto ID Bank 1 | . . . . 1 . . . . . . . . . . . . . . . . . Fabricator Hacks 1 | . . . . . . . . . . . . . . . . . . . . 1 . Network Status 1 | . . . . . . . . . . . . . . . . . . . . 1 . Repair Station Hacks 14 | . . . . . . . . . . 3 . . . . . . . 8 . 3 . Scan Component 8 | . . . . . . . . . . 2 . . . . . . . 4 . 2 . Repair 6 | . . . . . . . . . . 1 . . . . . . . 4 . 1 . Recycling Unit Hacks 1 | . . . . . . . . . . . . . . 1 . . . . . . . Report Inventory 1 | . . . . . . . . . . . . . . 1 . . . . . . . Scanalyzer 16 | . . 8 . . . 2 . 2 4 . . . . . . . . . . . . Insert Component 9 | . . 4 . . . 2 . 1 2 . . . . . . . . . . . . Analyze 7 | . . 4 . . . . . 1 2 . . . . . . . . . . . . Garrison Access Hacks 2 | . . . . . . 1 . . . . . . . . . . . 1 . . . Unlock Access 1 | . . . . . . 1 . . . . . . . . . . . . . . . Seal Access 1 | . . . . . . . . . . . . . . . . . . 1 . . . Unauthorized Hacks 18 | . 1 3 . . . . . 3 . 2 6 . 1 1 . . . . . 1 . Terminals 11 | . 1 2 . . . . . 3 . 2 . . 1 1 . . . . . 1 . Botnet 9 | . 1 2 . . . . . 2 . 1 . . 1 1 . . . . . 1 . Skim 2 | . . . . . . . . 1 . 1 . . . . . . . . . . . Fabricators . | . . . . . . . . . . . . . . . . . . . . . . Repair Stations . | . . . . . . . . . . . . . . . . . . . . . . Recycling Units 7 | . . 1 . . . . . . . . 6 . . . . . . . . . . Mask 1 | . . 1 . . . . . . . . . . . . . . . . . . . Tunnel 6 | . . . . . . . . . . . 6 . . . . . . . . . . Scanalyzers . | . . . . . . . . . . . . . . . . . . . . . . Garrison Access . | . . . . . . . . . . . . . . . . . . . . . . Data Cores Recovered 1 | . . . . . . . . . . . . . 1 . . . . . . . . Used . | . . . . . . . . . . . . . . . . . . . . . . Hacking Detections 48 | . 5 9 . . . 3 3 5 2 4 5 . 1 5 1 . . 1 . 4 . Full Trace Events 3 | . . 1 . . . 1 1 . . . . . . . . . . . . . . Feedback Events . | . . . . . . . . . . . . . . . . . . . . . . Feedback Blocked . | . . . . . . . . . . . . . . . . . . . . . . Robot Schematics Acquired . | . . . . . . . . . . . . . . . . . . . . . . Robots Built . | . . . . . . . . . . . . . . . . . . . . . . Authchips . | . . . . . . . . . . . . . . . . . . . . . . Time . | . . . . . . . . . . . . . . . . . . . . . . Total Robot Build Rating . | . . . . . . . . . . . . . . . . . . . . . . Part Schematics Acquired 7 | . . 4 . . . . . 1 2 . . . . . . . . . . . . Parts Built . | . . . . . . . . . . . . . . . . . . . . . . Authchips . | . . . . . . . . . . . . . . . . . . . . . . Time . | . . . . . . . . . . . . . . . . . . . . . . Total Part Build Rating . | . . . . . . . . . . . . . . . . . . . . . . Parts Repaired 6 | . . . . . . . . . . 1 . . . . . . . 4 . 1 . Time 347 | . . . . . . . . . . 13 . . . . . . . 280 . 54 . Parts Recycled . | . . . . . . . . . . . . . . . . . . . . . . Recycled Matter . | . . . . . . . . . . . . . . . . . . . . . . Retrieved Matter . | . . . . . . . . . . . . . . . . . . . . . . Retrieved Components . | . . . . . . . . . . . . . . . . . . . . . . Parts Scanalyzed 7 | . . 4 . . . . . 1 2 . . . . . . . . . . . . Part Schematics Acquired 7 | . . 4 . . . . . 1 2 . . . . . . . . . . . . Parts Damaged . | . . . . . . . . . . . . . . . . . . . . . . Bothacking | -11 -10 -9 -9 -9 -8 -8 -8 -8 -7 -7 -7 -7 -5 -5 -5 -5 -5 -4 -3 -2 -2 ------------ Run | Yrd Mat Mat Min Exi Min Mat Gar Mat Fac Sto Rec Scr Fac Ext Cet Arc Hub Fac Res Res Tes Used RIF Installer 2 | . . . . . . . 2 . . . . . . . . . . . . . . Patrol Navigation 1 | . . . . . . . 1 . . . . . . . . . . . . . . Robots Hacked 1 | . . . . . . . . . . 1 . . . . . . . . . . . Non-combat . | . . . . . . . . . . . . . . . . . . . . . . Combat 1 | . . . . . . . . . . 1 . . . . . . . . . . . Robot Hacks Applied 1 | . . . . . . . . . . 1 . . . . . . . . . . . streamctrl_high 1 | . . . . . . . . . . 1 . . . . . . . . . . . Relay Couplers Released 13 | . . . . . . . 11 . . . . . 2 . . . . . . . . Machine Destruction 13 | . . . . . . . 11 . . . . . 2 . . . . . . . . Attached 1 | . . . . . . . . . . 1 . . . . . . . . . . . Fabnet Peak Effective % . | . . . . . . . . . . . . . . . . . . . . . . Robots Rewired 16 | . . . . . . . 8 . . . . . . 8 . . . . . . . Allies Hacked . | . . . . . . . . . . . . . . . . . . . . . . Hacks Repelled . | . . . . . . . . . . . . . . . . . . . . . . Allies | -11 -10 -9 -9 -9 -8 -8 -8 -8 -7 -7 -7 -7 -5 -5 -5 -5 -5 -4 -3 -2 -2 -------- Run | Yrd Mat Mat Min Exi Min Mat Gar Mat Fac Sto Rec Scr Fac Ext Cet Arc Hub Fac Res Res Tes Total Allies 29 | . . . 2 . . . 8 . . 1 . . . 13 5 . . . . . . Largest Group 9 | . . . 2 2 . . 8 8 . 1 . . . 5 9 7 1 . . . . Highest-Rated Group 735 | . . . 42 42 . . 172 172 . 16 . . . 291 735 601 96 . . . . Highest-Rated Ally 159 | . . . 31 31 . . 31 31 . 16 . . . 159 159 159 96 . . . . Total Orders 10 | . . . . . . . 2 . . 1 . . . 2 . . 2 3 . . . STAY 1 | . . . . . . . . . . . . . . 1 . . . . . . . ROAM 2 | . . . . . . . 1 . . 1 . . . . . . . . . . . FOLLOW 2 | . . . . . . . 1 . . . . . . 1 . . . . . . . EXPLORE 5 | . . . . . . . . . . . . . . . . . 2 3 . . . Ally Attacks 178 | . . . . . . . . 74 . 1 . . . 26 66 10 1 . . . . Total Damage 3643 | . . . . . . . . 1339 . . . . . 430 1633 194 47 . . . . Kills 27 | . . . . . . . . 12 . . . . . 4 8 3 . . . . . Allies Corrupted . | . . . . . . . . . . . . . . . . . . . . . . Allies Melted . | . . . . . . . . . . . . . . . . . . . . . . Intel | -11 -10 -9 -9 -9 -8 -8 -8 -8 -7 -7 -7 -7 -5 -5 -5 -5 -5 -4 -3 -2 -2 ------- Run | Yrd Mat Mat Min Exi Min Mat Gar Mat Fac Sto Rec Scr Fac Ext Cet Arc Hub Fac Res Res Tes Robot Analysis Total 7 | . 6 1 . . . . . . . . . . . . . . . . . . . Derelict Logs Recovered . | . . . . . . . . . . . . . . . . . . . . . . Drone Launches 5 | . . . . . . . . . . . . . . . . . 2 3 . . . Drone Recoveries 3 | . . . . . . . . . . . . . . . . . 2 1 . . . Exploration | -11 -10 -9 -9 -9 -8 -8 -8 -8 -7 -7 -7 -7 -5 -5 -5 -5 -5 -4 -3 -2 -2 ------------- Run | Yrd Mat Mat Min Exi Min Mat Gar Mat Fac Sto Rec Scr Fac Ext Cet Arc Hub Fac Res Res Tes Turns Passed 22649 | 63 1560 1517 522 551 402 618 2262 1532 1440 616 1645 1263 892 2379 766 277 258 1079 56 2509 442 Spaces Moved 9527 | 36 602 814 329 396 277 316 859 533 490 192 634 505 272 1173 376 125 130 374 32 930 132 Core 20 | 1 . . . . . . . . . . . . . . . . . . . . 19 Treads 4663 | . 2 . . . . 36 859 455 490 192 634 505 251 . 25 1 . 138 32 930 113 Legs . | . . . . . . . . . . . . . . . . . . . . . . Wheels 4844 | 35 600 814 329 396 277 280 . 78 . . . . 21 1173 351 124 130 236 . . . Hover . | . . . . . . . . . . . . . . . . . . . . . . Flight . | . . . . . . . . . . . . . . . . . . . . . . Fastest Speed 50 | 50 90 140 140 135 135 116 235 135 250 250 250 250 155 111 120 135 135 120 173 158 50 Average Speed 182 | 90 182 140 141 135 135 138 235 234 250 250 250 250 237 135 141 135 135 148 173 165 142 Slowest Speed 480 | 100 480 140 215 140 135 312 235 330 250 250 250 250 250 275 240 240 135 180 173 173 160 Overloaded Moves . | . . . . . . . . . . . . . . . . . . . . . . Propulsion Burnouts . | . . . . . . . . . . . . . . . . . . . . . . Robots Hopped . | . . . . . . . . . . . . . . . . . . . . . . Cave-ins Triggered . | . . . . . . . . . . . . . . . . . . . . . . Exploration Rate (%) 51 | 3 84 85 71 77 75 27 95 46 10 35 97 54 6 85 94 95 33 14 1 29 18 Regions Visited 21 Branch Regions 11 Pre-discovered Areas 6 | . . . . . . . . . . . 6 . . . . . . . . . . Known Exits Taken 3 | . . . . . . 1 . 1 1 . . . . . . . . . . . . Unknown Exits Taken 17 | 1 1 1 1 1 1 . . . . 1 1 1 1 1 1 1 1 1 1 1 . Scrap Searched 5 | . . . 2 . . . . . . . . 3 . . . . . . . . . Spaces Dug 11 | . . . . . . . . . . . . . . . . . . . . 6 5 Terrain Destroyed 458 | . . 42 40 . . . 2 . . . . . 31 25 . 3 167 56 . 33 59 Melee 4 | . . . . . . . . . . . . . . . . . . . . 4 . Projectile 125 | . . . . . . . 2 . . . . . . 7 . 3 12 56 . 29 16 AOE 328 | . . 42 40 . . . . . . . . . 31 18 . . 155 . . . 42 Terrain Rammed . | . . . . . . . . . . . . . . . . . . . . . . Walls Destroyed . | . . . . . . . . . . . . . . . . . . . . . . Machines Disabled . | . . . . . . . . . . . . . . . . . . . . . . Actions | -11 -10 -9 -9 -9 -8 -8 -8 -8 -7 -7 -7 -7 -5 -5 -5 -5 -5 -4 -3 -2 -2 --------- Run | Yrd Mat Mat Min Exi Min Mat Gar Mat Fac Sto Rec Scr Fac Ext Cet Arc Hub Fac Res Res Tes Total 13327 | 54 863 1028 357 414 297 425 1018 745 674 292 674 507 401 1766 593 227 188 824 33 1677 270 Wait 2085 | . 103 83 15 . 13 37 23 95 137 41 10 . 21 306 160 101 25 347 . 514 54 Move 9506 | 35 601 813 328 395 276 315 858 532 489 191 633 504 271 1172 375 124 129 373 31 929 132 Hop . | . . . . . . . . . . . . . . . . . . . . . . Pick Up 213 | 8 26 15 1 5 . 13 7 13 8 21 4 2 12 28 8 . 9 19 . 14 . Fast Attach 78 | 6 3 2 . . . 2 . 7 1 2 2 . 9 11 9 . . 7 . 16 1 Attach 102 | . 4 7 1 . 4 11 . 2 7 2 3 . 12 15 1 . . 9 2 8 14 Detach 14 | . . . . 3 . . . . 1 1 1 . 2 4 . . . 1 . 1 . Swap 161 | . 4 14 . 2 1 3 13 14 4 6 2 . 14 29 6 . 4 6 . 37 2 Drop 228 | . 11 19 . 9 . 10 5 33 7 4 6 1 7 37 16 . 9 21 . 31 2 Fire 752 | 5 111 75 12 . 3 34 20 48 20 23 13 . 53 97 8 2 12 41 . 111 64 Melee 5 | . . . . . . . . . . 1 . . . . . . . . . 4 . Ram 1 | . . . . . . . . . . . . . . . . . . . . . 1 Kick . | . . . . . . . . . . . . . . . . . . . . . . Crush 6 | . . . . . . . . 1 . . . . . . . . . . . 5 . Escape Stasis 8 | . . . . . . . . . . . . . . 8 . . . . . . . Rewire 133 | . . . . . . . 74 . . . . . . 59 . . . . . . . Trap . | . . . . . . . . . . . . . . . . . . . . . . Miscellaneous 35 | . . . . . . . 18 . . . . . . . 10 . . . . 7 . Route ------- -11/Scrapyard -10/Materials (discovered 4 exits: *Mat x3 / [*Min]) -9/Materials (discovered 3 exits: *Mat / [*Min x2]) -9/Mines (discovered 2 exits: *Mat / *Exi) -9/Exiles -8/Mines (discovered 2 exits: *Mat x2) -8/Materials (discovered 2 exits: *Fac / Gar) -8/Garrison (discovered 3 exits: *Mat x3) -8/Materials (discovered 3 exits: *Fac x3) -7/Factory (discovered 5 exits: [*Fac] / *Sto x2 / Low x2) -7/Storage -7/Recycling (discovered 2 exits: *Fac / [*Scr]) -7/Scraptown -5/Factory -5/Extension (discovered 2 exits: *Fac / *Cet) -5/Cetus (discovered 3 exits: *Fac x2 / [*Arc]) -5/Archives (discovered 3 exits: *Fac / [*Hub x2]) -5/Hub_04(d) -4/Factory -3/Research -2/Research -2/Testing History --------- Turn | Location | Event 18 | -11/Scrapyard | Discovered new exit (range 16) 64 | -11/Scrapyard | Entered Materials 317 | -10/Materials | Build established: Mutant 594 | -10/Materials | Discovered new exit (range 3) 689 | -10/Materials | Discovered new exit (range 6) 1170 | -10/Materials | Core integrity fell below 50% 1375 | -10/Materials | Discovered new exit (range 12) 1491 | -10/Materials | Central database locked down 1491 | -10/Materials | Discovered new exit (range 13) 1624 | -10/Materials | Entered another Materials area 1624 | -9/Materials | Evolved 2 slots: Weapon x2 1908 | -9/Materials | Build established: Gunner 2273 | -9/Materials | Build established: Scavenger-Gunner 2311 | -9/Materials | Discovered new exit (range 12) 2941 | -9/Materials | Discovered new exit (range 4) 3021 | -9/Materials | Discovered new exit (range 16) 3141 | -9/Materials | Entered Mines 3376 | -9/Mines | Discovered new exit (range 5) 3378 | -9/Mines | Build established: Gunner 3643 | -9/Mines | Deemed a non-threat by the Exiles lab entrance 3644 | -9/Mines | Discovered new exit (range 5) 3663 | -9/Mines | Entered Exiles 3663 | -9/Exiles | Accompanied by 2 allies 3693 | -9/Exiles | Led the pair of lost Derelicts to a safe place 3697 | -9/Exiles | Met 8R-AWN 3734 | -9/Exiles | Met EX-HEX 3868 | -9/Exiles | Met EX-DEC 3891 | -9/Exiles | Visited The Gauntlet 3964 | -9/Exiles | Met EX-BIN 4009 | -9/Exiles | Build established: Mutant 4039 | -9/Exiles | Aligned with FarCom system 4041 | -9/Exiles | Given EX-Vault access code 4072 | -9/Exiles | Opened EX-Vault 4080 | -9/Exiles | Found Trap Reconfigurator 4108 | -9/Exiles | Warned to stay clear of 0b10 Research branches 4128 | -9/Exiles | Exiles lab attacked by MAIN.C 4200 | -9/Exiles | Discovered new exit (range 11) 4214 | -9/Exiles | Left Exiles lab with Trap Reconfigurator 4214 | -9/Exiles | Entered Mines 4264 | -8/Mines | Discovered new exit (range 7) 4530 | -8/Mines | Build established: Skirmisher 4596 | -8/Mines | Discovered new exit (range 12) 4616 | -8/Mines | Entered Materials 4616 | -8/Materials | Evolved 2 slots: Propulsion x1, Utility x1 4901 | -8/Materials | Discovered new exit (range 8) 4908 | -8/Materials | Build established: Scavenger-Skirmisher 5067 | -8/Materials | Garrison activated, responded to threat 5128 | -8/Materials | Lost 7 parts (2n5w) 5230 | -8/Materials | Identified exit to Garrison 5234 | -8/Materials | Entered Garrison 5234 | -8/Garrison | Discovered recently destroyed garrison 5266 | -8/Garrison | Installed Relay Interface Framework 5544 | -8/Garrison | Garrison Relay disabled 5610 | -8/Garrison | Discovered new exit (range 10) 5687 | -8/Garrison | Build established: Gunner 5834 | -8/Garrison | Discovered new exit (range 14) 6082 | -8/Garrison | Garrison Relay disabled 6418 | -8/Garrison | Garrison Relay disabled 6786 | -8/Garrison | Expanded RIF knowledge: Patrol Navigation 6835 | -8/Garrison | Discovered new exit (range 10) 6981 | -8/Garrison | Build established: Commander-Gunner 7319 | -8/Garrison | Phase Generator disabled 7496 | -8/Garrison | Entered Materials 7496 | -8/Materials | Accompanied by 8 allies 7740 | -8/Materials | Discovered new exit (range 15) 7901 | -8/Materials | Lost 4 allies 8084 | -8/Materials | Discovered new exit (range 4) 8183 | -8/Materials | Identified exit to Factory 8195 | -8/Materials | Build established: Skirmisher 8696 | -8/Materials | First assault squad dispatched 8792 | -8/Materials | Destroyed 9 combat bots 9028 | -8/Materials | Entered Factory 9028 | -7/Factory | Evolved 2 slots: Propulsion x1, Utility x1 9209 | -7/Factory | Identified exit to Storage 9209 | -7/Factory | Identified exit to Lower Caves 9244 | -7/Factory | Discovered new exit (range 3) 9514 | -7/Factory | Build established: Hacker-Skirmisher 9935 | -7/Factory | Build established: Skirmisher 10468 | -7/Factory | Entered Storage 10506 | -7/Storage | Repaired Huge Storage Unit 10524 | -7/Storage | Lost 7 parts (3u4w) 11074 | -7/Storage | Used back door to open Recycling access 11074 | -7/Storage | Discovered new exit (range 5) 11084 | -7/Storage | Entered Recycling 11638 | -7/Recycling | Discovered new exit (range 20) 12669 | -7/Recycling | Scanned before Scraplab entrance 12706 | -7/Recycling | Entered Scraplab 12726 | -7/Recycling | Discovered new exit (range 2) 12729 | -7/Recycling | Entered Scraptown 13030 | -7/Scraptown | Build established: Gunner 13163 | -7/Scraptown | Discovered new exit (range 13) 13384 | -7/Scraptown | Visited Fellowship of the Rings 13409 | -7/Scraptown | Visited Science Testing Area 13539 | -7/Scraptown | Heard Great Nut preacher, LISTEN AND RECITE! 13757 | -7/Scraptown | Turned away by UFD registrar 13757 | -7/Scraptown | Turned away by UFD registrar 13882 | -7/Scraptown | Visited TADAMA 13992 | -7/Scraptown | Entered Factory 13992 | -5/Factory | Evolved 4 slots: Power x1, Propulsion x2, Utility x1 14298 | -5/Factory | Build established: Scavenger-Skirmisher 14455 | -5/Factory | Destroyed 11 combat bots 14461 | -5/Factory | Lost 5 parts (1p1n3w) 14772 | -5/Factory | Discovered new exit (range 8) 14884 | -5/Factory | Entered Extension 15183 | -5/Extension | Spotted B-75 Beast 15228 | -5/Extension | Destroyed B-75 Beast 15232 | -5/Extension | Spotted B-75 Beast 15259 | -5/Extension | Disrupted transfer network 15599 | -5/Extension | Destroyed B-75 Beast 15671 | -5/Extension | Lost 14 parts (1p7n2u4w) 15724 | -5/Extension | System corruption reached 10% 15983 | -5/Extension | Discovered new exit (range 20) 15984 | -5/Extension | Discovered new exit (range 19) 16193 | -5/Extension | Rescued a captive Derelict 16203 | -5/Extension | Rescued a captive Derelict 16503 | -5/Extension | Rescued a captive Derelict 16511 | -5/Extension | Rescued a captive Derelict 17010 | -5/Extension | Lost 5 allies 17141 | -5/Extension | Energy Cycler disabled 17142 | -5/Extension | Rescued A7 17263 | -5/Extension | Entered Cetus 17263 | -5/Cetus | Accompanied by 5 allies (A7) 17268 | -5/Cetus | Acquired a Cetus Manufacturing Module code from A7 17278 | -5/Cetus | Spotted Cetus Guard 17279 | -5/Cetus | Spotted Cetus Guard 17280 | -5/Cetus | Spotted Cetus Guard 17282 | -5/Cetus | Spotted Cetus Guard 17290 | -5/Cetus | Allies destroyed Cetus Guard 17293 | -5/Cetus | Destroyed Cetus Guard 17300 | -5/Cetus | Allies destroyed Cetus Guard 17306 | -5/Cetus | Allies destroyed Cetus Guard 17347 | -5/Cetus | System corruption reached 30% 17382 | -5/Cetus | Discovered new exit (range 19) 17538 | -5/Cetus | Discovered new exit (range 19) 17616 | -5/Cetus | Escorted A7 to Cetus Mainframe 17619 | -5/Cetus | Build established: Scavenger-Tank 17675 | -5/Cetus | Started Cetus Manufacturing Module 17700 | -5/Cetus | Manufactured an Enhanced Grunt 17725 | -5/Cetus | Manufactured an Enhanced Grunt 17750 | -5/Cetus | Manufactured an Enhanced Grunt 17775 | -5/Cetus | Manufactured an Enhanced Grunt 17800 | -5/Cetus | Manufactured an Enhanced Grunt 17891 | -5/Cetus | Spotted Cetus Guard 17891 | -5/Cetus | Spotted Cetus Guard 17894 | -5/Cetus | Spotted Cetus Guard 17897 | -5/Cetus | Allies destroyed Cetus Guard 17898 | -5/Cetus | Spotted Cetus Guard 17904 | -5/Cetus | Allies destroyed Cetus Guard 17905 | -5/Cetus | Allies destroyed Cetus Guard 17914 | -5/Cetus | Destroyed Cetus Guard 17918 | -5/Cetus | Discovered new exit (range 20) 17931 | -5/Cetus | Met Revision 17 18013 | -5/Cetus | Security sweep announced 18029 | -5/Cetus | Entered Archives 18029 | -5/Archives | Accompanied by 7 allies (A7) 18034 | -5/Archives | Received a hacking code to weaken MAIN.C 18063 | -5/Archives | Met Zhirov 18065 | -5/Archives | Discovered new exit (range 20) 18069 | -5/Archives | Reinforcements dispatched to Archives 18114 | -5/Archives | Reinforcements dispatched to Archives 18134 | -5/Archives | Zhirov detonated Archives 18165 | -5/Archives | Lost 4 allies 18214 | -5/Archives | Discovered new exit (range 20) 18256 | -5/Archives | Discovered new exit (range 20) 18306 | -5/Archives | Entered Hub_04(d) 18306 | -5/Hub_04(d) | Accompanied by 1 ally 18411 | -5/Hub_04(d) | Discovered new exit (range 31) 18501 | -5/Hub_04(d) | Network Hub disabled 18564 | -5/Hub_04(d) | Entered Factory 18564 | -4/Factory | Evolved 2 slots: Utility x2 18743 | -4/Factory | Repaired Centrium Heavy Treads 18814 | -4/Factory | First assault squad dispatched 18853 | -4/Factory | Repaired Centrium Medium Armor Plating 18886 | -4/Factory | Repaired Arm. Wheel 18918 | -4/Factory | Repaired Arm. Wheel 19089 | -4/Factory | Found Prototype Hackware 19604 | -4/Factory | Discovered new exit (range 9) 19643 | -4/Factory | Entered Research 19643 | -3/Research | Evolved 2 slots: Utility x2 19654 | -3/Research | Discovered new exit (range 13) 19699 | -3/Research | Entered another Research area 19699 | -2/Research | Evolved 2 slots: Utility x2 19799 | -2/Research | Identified Exp. System Shield 20193 | -2/Research | Cargo convoy interrupted 20246 | -2/Research | Build established: Hacker-Skirmisher 20770 | -2/Research | Build established: Scavenger-Tank 21119 | -2/Research | Found Prototype Device 21119 | -2/Research | Identified Exp. Phase Shifter 21280 | -2/Research | System corruption reached 10% 21868 | -2/Research | Build established: Hacker-Tank 21894 | -2/Research | Repaired Centrium Medium Armor Plating 22082 | -2/Research | Discovered new exit (range 17) 22208 | -2/Research | Entered Testing 22209 | -2/Testing | Maximum security lockdown engaged 22491 | -2/Testing | Spotted Executioner 22504 | -2/Testing | Destroyed Executioner 22511 | -2/Testing | Spotted Executioner 22546 | -2/Testing | Spotted Investigator 22557 | -2/Testing | Destroyed Investigator 22560 | -2/Testing | Destroyed Executioner 22585 | -2/Testing | Spotted Executioner 22585 | -2/Testing | Spotted Executioner 22585 | -2/Testing | Spotted Striker 22585 | -2/Testing | Spotted Striker 22587 | -2/Testing | Spotted Executioner 22591 | -2/Testing | Released all parts (9) 22593 | -2/Testing | System corruption reached 30% 22595 | -2/Testing | Core integrity fell below 50% 22600 | -2/Testing | Destroyed 28 combat bots 22611 | -2/Testing | Core integrity fell below 20% 22622 | -2/Testing | Lost 14 parts (1p4n6u3w) 22650 | -2/Testing | Destroyed by Y-72 Warden with Quantum Rifle Last Messages --------------- 22605_ M-36 Artificer repairs M-36 Artificer. 22605_ Slug penetrates Wall. 22605_ Penetrated by Slug. 22608_ Slug penetrates Wall. 22608_ Penetrated by Slug. 22608_ Slug penetrates Earth. 22614_ O-24 Administrator: "IFF HANDSHAKE FAILED. SECURING TERMINAL." 22617_ System corrupted: Heat flow error (+262). 22624_ E-15 Imp destroyed. 22634_ System corrupted: Component data lost. 22634_ Critical hit (Burn: +37). 22644_ Penetrated by Slug. 22646_ Acquired Prototype Flight Unit. 22646_ Identified Imp. Q-thruster. 22648_ Centrium Heavy Treads destroyed. 22648_ Penetrated by Slug. 22650_ X>BSOI1D 39|N1E&SNAD4 AJRXFZIU OHL>3 22650_ Penetrated by Slug. [Achievement: 30k Club] Map ----- +----------------------------------------------------+ | ???????# """" #??????????# #[ | | ???????# ""S"" #??????????# !! | | ???##### "" "" ############"# | | ???# " " !%=%% %%!"= | | ???????# ! #####""#### "%%! | | ???????# ! = #??????#??#"%"%= | | ???????# #?????????# " | | ?????#######/###### T !#??# | | ?????# g "" #### | | ?????# = p###### | | ?????## g%b #????#! #### | | ??????# hi E#????##???????# | | ??????#g #?????????????#% | | ??????# gl #?????????????#+## | | ??????# E #??######?????"%?/ | | ??????# i #??# #???? "?# | | ??????# gl #??# #??? ?# | | ???####gg #### #?? ??# | | ???# g g +? ??# | | ???#l#####h i# ??# | | ???# #???# # ??# | | ???# #???# # ???# | | ??##/######+#+### # ???# | | ??#;K K # #####????# | | ???# === YYY/ # #????????# | | ???# ==@ Y # #????????# | | ???# === "" "" # #????????# | | ???# ""G"" #C #????????# | | ???############?# C #????????# | | ????????????????# #????????# | | ????????????????# #????????# | | ????????????????# i###+###### | | ????????????????+ C | | ????????????????# | | ????????????????# """ | | ????????????????# """ | | ????????????????# F" ######+ | | ????????????????# "" #???? | | ??????# ######### #???? | | ??????# """"" #??? | | ??????# """"" #??? | | ??????# """"" #?? | | ???# """"" #?? | | ???# ######+##### #? | | ????????????????# +? | | ????????????????# ###### | | ????????????????+ #????? | | ????????????????# #????# | | ????????????????# ????+ | | ????????????????# #????####### | +----------------------------------------------------+ Best States ------------- Heat Dissipation 111 Coolant Potential 80 Energy Generation 49 Energy Capacity 600 Matter Stores 300 Matter Capacity 600 Sight Range 20 Terrain Scan Density 10 Jamming Range 16 Armor Coverage 900 Resistance: TH 30 Weapon Cycling 20 Phase Shifting 15 Evasion (%) 55 Targeting Accuracy 8 Recoil Reduction 7 Offensive Hacking 30 Defensive Hacking 30 Relay Coupler Types 1 Relay Coupler Value 27 Authchip Count 1 Item Schematics ----------------- Hacking Suite | -9/Materials | Scanalyzed Imp. Assault Rifle | -9/Materials | Scanalyzed Adv. Targeting Computer | -9/Materials | Scanalyzed Cld. Ion Engine | -9/Materials | Scanalyzed Hrd. Medium Armor Plating | -8/Materials | Scanalyzed Imp. Cooling System | -7/Factory | Scanalyzed Hpw. Tractor Beam | -7/Factory | Scanalyzed Robot Schematics ------------------ None Fabricated ------------ Nothing Alien Tech Used ----------------- None Achievements -------------- 30k Club Killing Spree Oh No You Don't! Challenges ------------ None Game ------ Seed ParticleTitaniumRigger Manual? 0 Play Time 03:50:53 Cumulative 95.8 hours Start 2024.08.24 @ 18:03:45 End 2024.08.24 @ 21:56:26 Sessions 1 Manual Loads 0 Difficulty Rogue Special Mode None Game No. 70 Rogue 70 Adventurer 0 Explorer 0 Win Type - Total 1 Types 1/0/0/0/0/0/0/0/0 Lore% 48 Gallery% 55 Achievement% 46 Wizard Run 0 Options --------- Layout 1 ASCII 0 Keyboard 0 Movement Numpad Keybinds 0 Fullscreen 1 Font 24/Smallcaps Map View 50x35 Zoom Use 0% Tactical HUD 1 Map Filters NONE Filters NONE Steam 1 RUN: b2d7336c-8cfa-4de5-af40-5f1ddd5b288e